bitfinex-derivatives/quotes_ETHF0:USTF0_20251012
["timestamp","ask_amount","ask_price","bid_price","bid_amount"]
[1760270544005,11.86180189,3820.6,3820.5,0.16951094]
[1760270544201,11.86180189,3820.6,3820.5,0.53391094]
[1760270544510,52.66180189,3820.6,3820.5,0.16951094]
[1760270545609,55.86960189,3820.6,3820.5,0.16951094]
[1760270546108,55.86960189,3820.6,3820.5,0.53391094]
[1760270547903,55.86960189,3820.6,3820.5,0.16951094]
[1760270549210,50.86960189,3820.6,3820.5,0.53391094]
[1760270553318,47.19082189,3820.6,3820.5,1.48070094]
[1760270553808,47.19082189,3820.6,3820.5,6.48070094]
[1760270558311,47.02864518,3820.6,3820.5,6.48070094]
[1760270558512,3.2078,3822.0,3821.9,0.47082]
[1760270558716,5.50529068,3822.4,3822.1,1.311]
[1760270558920,40.80231043,3822.2,3822.1,1.311]
[1760270559113,46.92724989,3822.2,3822.1,1.311]
[1760270559714,46.92724989,3822.2,3822.1,1.34661094]
[1760270562923,46.92724989,3822.2,3822.1,0.64151094]
[1760270563116,46.92724989,3822.2,3822.1,1.11231094]
[1760270563420,46.92724989,3822.2,3822.1,1.33851094]
[1760270563919,46.92724989,3822.2,3822.1,0.64151094]
[1760270564314,47.39803989,3822.2,3822.1,0.40001094]
[1760270564919,46.92724989,3822.2,3822.1,0.40001094]
[1760270565116,46.92724989,3822.2,3822.1,0.87081094]
[1760270565615,46.92724989,3822.2,3822.1,0.40001094]
[1760270565821,0.4708,3822.1,3822.0,0.1339]
[1760270566215,6.85415751,3822.1,3822.0,0.1339]
[1760270567826,6.85415751,3822.1,3822.0,0.4715]
[1760270573330,6.85415751,3822.1,3822.0,0.1339]
[1760270573827,6.85415751,3822.1,3822.0,0.4715]
[1760270574027,6.85415751,3822.1,3822.0,0.1339]
[1760270574227,6.85415751,3822.1,3822.0,0.4715]
[1760270574425,6.38335751,3822.1,3822.0,1.41161]
[1760270574625,6.38335751,3822.1,3822.0,6.41161]
[1760270575530,3.38314303,3822.1,3822.0,9.61941]
[1760270576326,2.90072846,3822.1,3822.0,9.61941]
[1760270578330,0.00231043,3822.2,3822.1,1.2777]
[1760270579532,40.8,3822.7,3822.6,1.27764]
[1760270579830,40.8,3822.7,3822.6,4.48544]
[1760270580329,40.8,3822.7,3822.6,3.5454]
[1760270580535,47.00166814,3822.7,3822.6,4.01698842]
[1760270582132,47.00166814,3822.7,3822.6,4.48772842]
[1760270583329,47.47238814,3822.7,3822.6,3.54768842]
[1760270583525,0.47086,3821.6,3821.5,3.3417]
[1760270583720,0.47091,3821.2,3820.7,3.2078]
[1760270583923,0.47096,3820.8,3820.7,3.2078]
[1760270584125,40.8,3820.8,3820.7,3.2078]
[1760270584321,44.18056932,3820.8,3820.7,3.4509]
[1760270584631,44.18056932,3820.8,3820.7,3.45342305]
[1760270584632,47.03518385,3820.8,3820.7,3.45342305]
[1760270585030,3.2078,3822.4,3820.7,8.67962305]
[1760270585329,2.89151569,3822.1,3822.0,0.1321]
[1760270585524,43.69151569,3822.1,3822.0,0.4697]
[1760270585730,40.8,3822.1,3822.0,0.939]
[1760270585931,43.59133967,3822.1,3822.0,4.1468]
[1760270587836,40.8,3822.1,3822.0,4.1468]
[1760270588930,0.00337557,3822.7,3822.0,4.1468]
[1760270588931,0.00337557,3822.7,3822.6,1.27759]
[1760270589131,0.00337557,3822.7,3822.6,4.48539]
[1760270589440,44.25889107,3822.7,3822.6,4.48539]
[1760270590332,0.00337557,3822.7,3822.6,9.48539]
[1760270595644,0.00337557,3822.7,3822.6,4.48539]
[1760270596945,3.42587396,3822.7,3822.6,4.48539]
[1760270599140,3.89655396,3822.7,3822.6,3.5454]
[1760270599341,11.66100861,3822.7,3822.6,3.2078]
[1760270599547,0.47069,3822.6,3822.5,0.1321]
[1760270599740,0.47071,3822.4,3822.3,0.3436]
[1760270600140,6.90185494,3822.4,3822.3,0.81433]
[1760270600345,47.23114494,3822.4,3822.3,1.29693]
[1760270600751,47.23114494,3822.4,3822.3,0.3436]
[1760270600937,52.70185494,3822.4,3822.3,0.3436]
[1760270601238,47.23114494,3822.4,3822.3,0.81433]
[1760270602040,47.70185494,3822.4,3822.3,0.81433]
[1760270602741,47.70185494,3822.4,3822.3,0.3436]
[1760270602938,47.70185494,3822.4,3822.3,0.81433]
[1760270603738,47.70185494,3822.4,3822.3,0.3436]
[1760270605147,47.70185494,3822.4,3822.3,0.81433]
[1760270605334,47.23114494,3822.4,3822.3,1.05313]
[1760270605639,47.70185494,3822.4,3822.3,0.3436]
[1760270605948,47.23114494,3822.4,3822.3,0.81433]
[1760270606748,47.70185494,3822.4,3822.3,0.81433]
[1760270607543,47.23114494,3822.4,3822.3,1.29693]
[1760270607737,0.00337557,3822.7,3822.6,0.95329]
[1760270608041,0.022,3822.8,3822.7,0.70948]
[1760270608240,0.47056,3823.7,3823.6,0.3436]
[1760270608752,47.03441175,3823.7,3823.6,1.05297]
[1760270608940,47.03629525,3823.7,3823.6,1.05620438]
[1760270609341,47.50684525,3823.7,3823.6,1.05620438]
[1760270609645,47.50684525,3823.7,3823.6,0.58563438]
[1760270610045,47.50684525,3823.7,3823.6,0.34683438]
[1760270610741,47.03629525,3823.7,3823.6,0.58563438]
[1760270610937,47.03629525,3823.7,3823.6,1.05620438]
[1760270611143,47.03629525,3823.7,3823.6,1.30000438]
[1760270615142,6.23629525,3823.7,3823.6,6.30000438]
[1760270615350,3.41134777,3823.7,3823.6,6.30000438]
[1760270616348,0.0018835,3823.7,3823.6,6.30000438]
[1760270616850,0.0018835,3823.7,3823.6,1.30000438]
[1760270617048,2.85714249,3823.7,3823.6,1.30000438]
[1760270617247,0.0018835,3823.7,3823.6,1.30000438]
[1760270619151,3.36253171,3823.7,3823.6,0.34683438]
[1760270619349,6.29772192,3823.7,3823.6,0.00323438]
[1760270619553,11.29772192,3823.7,3823.6,0.34683438]
[1760270619748,52.09772192,3823.7,3823.6,0.34683438]
[1760270620351,52.09772192,3823.7,3822.5,3.3416]
[1760270620352,1.17664,3823.3,3822.5,3.5689]
[1760270620540,1.17672,3823.0,3822.0,3.3399]
[1760270620741,3.2078,3822.4,3822.0,0.83021]
[1760270620939,3.2078,3822.4,3822.3,0.2273]
[1760270621140,0.47073,3822.7,3822.5,0.1428]
[1760270621342,0.47073,3822.7,3822.5,0.14528322]
[1760270621553,6.43151677,3822.6,3822.5,0.14528322]
[1760270622450,6.43151677,3822.6,3822.5,0.47778322]
[1760270625247,6.43151677,3822.6,3822.5,0.71518322]
[1760270627049,6.43151677,3822.6,3822.5,0.93628322]
[1760270627245,3.40550913,3822.6,3822.5,1.40703322]
[1760270627442,3.40550913,3822.6,3822.5,0.93628322]
[1760270627755,2.91839744,3822.6,3822.5,1.40703322]
[1760270628146,3.41563105,3822.6,3822.5,1.40703322]
[1760270628552,6.28900689,3822.8,3822.7,0.80322]
[1760270628747,0.4707,3822.9,3822.8,0.3325]
[1760270628954,0.47074,3822.6,3822.5,0.47778322]
[1760270629156,41.27074,3822.6,3822.5,0.14528322]
[1760270629350,44.91904767,3822.6,3822.5,0.14528322]
[1760270629750,44.91904767,3822.6,3822.5,0.47778322]
[1760270629950,44.91904767,3822.6,3822.5,0.00248322]
[1760270630254,49.91904767,3822.6,3822.5,0.00248322]
[1760270630461,0.4708,3822.1,3822.0,0.4646]
[1760270630753,0.47084,3821.8,3821.5,3.3506]
[1760270630951,0.47089,3821.4,3821.2,0.3325]
[1760270631151,40.8,3821.3,3821.0,0.61373]
[1760270631350,0.47092,3821.2,3821.1,0.3325]
[1760270631550,0.47092,3821.2,3821.1,0.33456268]
[1760270631755,6.75760746,3821.2,3821.1,0.00206268]
[1760270633254,6.28668746,3821.2,3821.1,0.33456268]
[1760270634057,6.28668746,3821.2,3821.1,1.26398268]
[1760270634464,6.28668746,3821.2,3821.1,1.04288268]
[1760270634663,6.28668746,3821.2,3821.1,0.80548268]
[1760270634858,6.28668746,3821.2,3821.1,1.04288268]
[1760270635063,6.28668746,3821.2,3821.1,1.26398268]
[1760270635365,3.46520029,3821.2,3821.1,6.26398268]
[1760270637458,3.46520029,3821.2,3821.1,1.26398268]
[1760270640177,3.46520029,3821.2,3821.1,0.80548268]
[1760270640373,2.76886371,3821.2,3821.1,0.33456268]
[1760270640566,2.76886371,3821.2,3821.1,0.57196268]
[1760270640763,2.76886371,3821.6,3821.5,1.18037]
[1760270641067,2.96862147,3821.7,3821.6,0.47085]
[1760270641281,43.76862147,3821.7,3821.6,0.80335]
[1760270641468,44.74081713,3821.7,3821.6,0.80335]
[1760270641669,47.7094386,3821.7,3821.6,0.80335]
[1760270641975,0.47086,3821.6,3821.5,0.1396]
[1760270642269,3.40301856,3821.6,3821.5,0.1396]
[1760270642479,6.82530823,3821.6,3821.5,0.1396]
[1760270642669,6.82530823,3821.6,3821.5,0.61047]
[1760270642974,6.82530823,3821.6,3821.5,0.94297]
[1760270643372,6.35444823,3821.6,3821.5,0.94297]
[1760270644474,6.82530823,3821.6,3821.5,0.4721]
[1760270644876,6.82530823,3821.6,3821.5,0.94297]
[1760270645376,6.35444823,3821.6,3821.5,0.94297]
[1760270646470,6.35444823,3821.6,3821.5,1.18037]
[1760270646670,6.35444823,3821.6,3821.5,0.94297]
[1760270647474,6.35444823,3821.6,3821.5,1.40147]
[1760270647780,6.35444823,3821.6,3821.5,0.94297]
[1760270648581,6.82530823,3821.6,3821.5,0.94297]
[1760270649881,6.35444823,3821.6,3821.5,0.94297]
[1760270650482,6.35444823,3821.6,3821.5,1.38587]
[1760270651385,6.35444823,3821.6,3821.5,4.59367]
[1760270651878,6.35444823,3821.6,3821.5,1.38587]
[1760270656577,6.35444823,3821.6,3821.5,9.59367]
[1760270656782,3.42228967,3821.6,3821.5,9.59367]
[1760270658278,3.67851,3822.8,3822.7,1.05852]
[1760270658479,3.67851,3822.8,3822.7,0.83682]
[1760270658784,47.25003634,3822.8,3822.7,0.83682]
[1760270659882,0.47074,3822.6,3822.5,0.1393]
[1760270660178,0.47075,3822.5,3822.4,0.83686]
[1760270660381,0.4708,3822.1,3822.0,0.1393]
[1760270660780,6.47043842,3822.1,3822.0,0.1393]
[1760270660981,46.79963842,3822.1,3822.0,0.97621]
[1760270661285,47.27043842,3822.1,3822.0,0.97621]
[1760270661884,47.27043842,3822.1,3822.0,0.5054]
[1760270662277,47.27043842,3822.1,3822.0,0.97621]
[1760270664084,46.79963842,3822.1,3822.0,0.97621]
[1760270665082,47.27043842,3822.1,3822.0,0.97621]
[1760270665675,46.79963842,3822.1,3822.0,1.41911]
[1760270665877,46.79963842,3822.1,3822.0,1.19791]
[1760270666085,46.79963842,3822.1,3822.0,0.97621]
[1760270667887,46.79963842,3822.1,3822.0,1.19791]
[1760270668885,46.79963842,3822.1,3822.0,0.97621]
[1760270669084,47.27043842,3822.1,3822.0,0.97621]
[1760270669285,46.79963842,3822.1,3822.0,0.97621]
[1760270671792,46.79963842,3822.1,3822.0,1.41911]
[1760270673091,3.36492384,3822.1,3822.0,6.41911]
[1760270673492,3.67851,3822.8,3822.7,0.47072]
[1760270673691,44.0078,3822.8,3822.7,1.27972]
[1760270673887,46.93276297,3822.8,3822.7,1.27972]
[1760270674191,44.17220728,3822.8,3822.7,4.48752]
[1760270674490,44.17220728,3822.8,3822.7,1.27972]
[1760270674789,3.37220728,3822.8,3822.7,9.48752]
[1760270675188,3.67841,3823.6,3823.5,0.60993]
[1760270675391,3.67841,3823.6,3823.5,0.97603]
[1760270675592,9.83902133,3823.6,3823.5,0.97603]
[1760270675792,50.63902133,3823.6,3823.5,0.97603]
[1760270676787,0.47067,3823.1,3823.0,0.1393]
[1760270676991,3.67847,3823.1,3823.0,0.5054]
[1760270677296,6.70664538,3823.1,3823.0,0.5054]
[1760270678494,6.70664538,3823.1,3823.0,0.97609]
[1760270679990,0.47071,3822.8,3822.7,0.3522]
[1760270680188,12.41268538,3823.1,3822.5,0.4915]
[1760270680189,0.47074,3822.6,3822.5,0.4915]
[1760270680390,3.67854,3822.6,3822.5,0.4915]
[1760270680594,50.92827131,3822.6,3822.5,0.4915]
[1760270681388,50.92827131,3822.6,3822.5,0.1393]
[1760270682498,50.92827131,3822.6,3822.5,0.502]
[1760270682900,50.45753131,3822.6,3822.5,1.43145]
[1760270683197,47.24973131,3822.6,3822.5,1.43145]
[1760270686897,44.27761084,3822.6,3822.5,6.43145]
[1760270687887,3.47761084,3822.6,3822.5,6.43145]
[1760270688297,41.27069,3823.1,3823.0,0.96557]
[1760270688698,47.56515075,3823.1,3823.0,0.96557]
[1760270688887,47.56515075,3823.1,3823.0,0.4949]
[1760270689895,47.56515075,3823.1,3822.5,0.502]
[1760270689896,0.47074,3822.6,3822.5,0.502]
[1760270690100,52.09446075,3823.1,3821.1,0.00206268]
[1760270690101,0.4708,3822.1,3821.7,3.67865]
[1760270690299,0.4708,3822.1,3822.0,0.502]
[1760270690502,6.52323546,3822.1,3822.0,0.1393]
[1760270690797,46.85243546,3822.1,3822.0,0.502]
[1760270691105,46.85243546,3822.1,3822.0,0.97281]
[1760270691295,47.32323546,3822.1,3822.0,0.97281]
[1760270691802,46.85243546,3822.1,3822.0,0.97281]
[1760270692097,44.17476331,3822.1,3822.0,6.43151]
[1760270692301,40.8,3822.1,3822.0,6.43151]
[1760270694409,3.2078,3822.8,3822.7,0.69792]
[1760270694601,3.2078,3822.8,3822.7,1.06062]
[1760270694802,9.50276233,3822.8,3822.7,1.06062]
[1760270695001,50.30276233,3822.8,3822.7,1.06062]
[1760270695205,47.09496233,3822.8,3822.7,1.29212]
[1760270696110,44.18377439,3822.8,3822.7,1.29212]
[1760270700108,3.38377439,3822.8,3822.7,1.29212]
[1760270700506,3.2078,3823.6,3823.5,0.83003]
[1760270700706,44.47841,3823.6,3823.5,1.19273]
[1760270700907,50.83025891,3823.6,3823.5,1.19273]
[1760270701111,50.83025891,3823.6,3823.5,0.96553]
[1760270701506,50.35964891,3823.6,3823.5,0.96553]
[1760270702210,50.83025891,3823.6,3823.5,0.96553]
[1760270702511,50.35964891,3823.6,3823.5,0.96553]
[1760270702711,50.35964891,3823.6,3823.5,1.19273]
[1760270703210,47.15184891,3823.6,3823.5,1.42423]
[1760270703406,3.43220148,3823.6,3823.5,1.42423]
[1760270705107,2.26572888,3824.6,3824.5,0.3594]
[1760270705312,2.26572888,3824.6,3824.5,1.4241]
[1760270705513,8.62173473,3824.6,3824.5,1.4241]
[1760270706014,3.39383802,3824.6,3824.5,6.4241]
[1760270706209,3.39698341,3824.6,3824.5,1.42678917]
[1760270706515,0.00314539,3824.6,3824.5,1.42678917]
[1760270706713,3.35911585,3824.6,3824.5,1.42678917]
[1760270709316,6.38442594,3824.6,3824.5,1.19528917]
[1760270709518,6.38442594,3824.6,3824.5,1.42678917]
[1760270709905,3.35911585,3824.6,3824.5,1.42678917]
[1760270717223,0.00314539,3824.6,3824.5,1.42678917]
[1760270717424,0.00314539,3824.6,3824.5,6.42678917]
[1760270718331,40.8,3825.5,3825.4,1.27779]
[1760270718718,44.27634687,3825.5,3825.4,1.27779]
[1760270719332,44.27837544,3825.5,3825.4,1.27779]
[1760270719624,44.74875544,3825.5,3825.4,0.8074]
[1760270719817,52.75331109,3825.5,3825.4,0.3422]
[1760270720018,47.28293109,3825.5,3825.4,0.8074]
[1760270720319,47.28293109,3825.5,3825.4,1.27779]
[1760270721723,44.27837544,3825.5,3825.4,1.27779]
[1760270723528,0.00202857,3825.5,3825.4,1.27779]
[1760270724926,3.4438875,3825.5,3825.4,1.27779]
[1760270726442,0.00202857,3825.5,3825.4,1.27779]
[1760270727824,3.2078,3826.7,3826.6,1.27764]
[1760270728226,9.33230355,3826.7,3826.6,1.27764]
[1760270728428,47.33847442,3826.7,3826.6,1.27764]
[1760270728843,50.0925228,3826.7,3826.6,1.03824]
[1760270729332,50.0925228,3826.7,3826.6,0.81244]
[1760270729734,50.5627528,3826.7,3826.6,0.3422]
[1760270730136,0.47027,3826.4,3826.3,0.3661]
[1760270730337,0.47027,3826.4,3826.0,0.4988]
[1760270730338,0.47031,3826.1,3826.0,0.4988]
[1760270730525,3.67811,3826.1,3826.0,0.7414]
[1760270730729,9.92923705,3826.1,3826.0,0.7414]
[1760270732336,9.92923705,3826.1,3826.0,0.4988]
[1760270732536,9.92923705,3826.1,3826.0,0.7414]
[1760270734637,14.92923705,3826.1,3826.0,0.4988]
[1760270734839,0.47037,3825.6,3825.3,3.2078]
[1760270735441,0.47039,3825.4,3825.3,3.2078]
[1760270735633,0.47039,3825.4,3825.3,3.5739]
[1760270735835,6.89532529,3825.4,3825.3,3.5739]
[1760270736039,0.47043,3825.1,3825.0,0.1327]
[1760270736341,3.2078,3825.2,3825.1,1.31953]
[1760270736544,3.44928092,3825.4,3825.2,0.71302]
[1760270736737,0.47039,3825.4,3825.3,0.3661]
[1760270736939,41.27037,3825.6,3825.5,0.9912]
[1760270737243,41.27037,3825.6,3825.5,0.7508]
[1760270737542,47.71133475,3825.6,3825.5,1.22118]
[1760270739031,47.24096475,3825.6,3825.5,1.22118]
[1760270739442,47.24096475,3825.6,3825.5,1.46158]
[1760270739736,3.42910163,3825.6,3825.5,1.46158]
[1760270740136,40.8,3826.2,3826.1,1.0514]
[1760270740534,47.48417325,3826.2,3826.1,0.5811]
[1760270741044,47.48417325,3826.2,3826.1,1.05141]
[1760270741239,47.48417325,3826.2,3826.1,0.80861]
[1760270741443,47.48417325,3826.2,3826.1,0.3383]
[1760270741744,0.47031,3826.1,3826.0,0.4716]
[1760270742037,0.47031,3826.1,3826.0,0.94192]
[1760270742243,6.60834132,3826.1,3826.0,0.94192]
[1760270742745,6.13803132,3826.1,3826.0,0.94192]
[1760270744345,6.13803132,3826.1,3826.0,1.18472]
[1760270744746,6.13803132,3826.1,3826.0,1.41782]
[1760270745742,40.8,3826.2,3826.1,0.47031]
[1760270745950,40.8,3826.2,3826.1,1.27551]
[1760270747039,47.15024678,3826.2,3826.1,0.81651]
[1760270747241,47.15024678,3826.2,3826.1,1.27551]
[1760270748244,47.15024678,3826.2,3826.1,1.03991]
[1760270748651,47.15024678,3826.2,3826.1,1.27551]
[1760270749350,44.16065996,3826.2,3826.1,1.27551]
[1760270749549,40.8,3826.2,3826.1,1.27551]
[1760270752348,0.00252743,3826.7,3826.6,0.92924]
[1760270752549,0.00252743,3826.7,3826.6,1.27544]
[1760270752739,0.00252743,3826.7,3826.6,6.27544]
[1760270752942,0.22,3827.3,3827.2,1.27537]
[1760270753846,0.22283664,3827.3,3827.2,1.27859389]
[1760270765161,6.3971721,3827.3,3827.2,1.27859389]
[1760270766259,11.8673321,3827.3,3827.2,0.34942389]
[1760270766458,11.8673321,3827.3,3827.2,0.81959389]
[1760270766659,11.3971721,3827.3,3827.2,0.81959389]
[1760270766862,6.3971721,3827.3,3827.2,1.27859389]
[1760270768766,6.8673321,3827.3,3827.2,1.27859389]
[1760270769060,3.55827913,3827.3,3827.2,1.27859389]
[1760270769259,0.20867265,3827.3,3827.2,1.27859389]
[1760270772359,6.59267432,3827.3,3827.2,1.27859389]
[1760270772563,7.06283432,3827.3,3827.2,0.34942389]
[1760270772865,7.06283432,3827.3,3827.2,0.81959389]
[1760270773167,52.86283432,3827.3,3827.2,0.00322389]
[1760270775565,52.86283432,3827.3,3827.2,0.33352389]
[1760270779766,52.86283432,3827.3,3827.2,0.00322389]
[1760270780869,0.47021,3826.9,3826.8,0.80052]
[1760270781059,3.2078,3827.0,3826.9,0.47021]
[1760270781265,3.2078,3827.0,3826.9,1.02391]
[1760270781479,9.64955836,3827.0,3826.9,1.02391]
[1760270781705,9.64955836,3827.0,3826.9,0.80341638]
[1760270781871,6.44175836,3827.0,3826.9,0.80341638]
[1760270783764,6.44175836,3827.0,3826.9,4.46861638]
[1760270785263,6.44175836,3827.0,3826.9,0.80341638]
[1760270785774,15.11975836,3827.0,3826.9,0.00290638]
[1760270786374,15.11975836,3827.0,3826.9,0.33320638]
[1760270786574,15.11975836,3827.0,3826.9,0.00290638]
[1760270786779,15.11975836,3827.0,3826.9,0.33320638]
[1760270787272,15.11975836,3827.0,3826.9,0.00290638]
[1760270787770,15.11975836,3827.0,3826.9,0.33320638]
[1760270787771,10.11975836,3827.0,3826.9,0.33320638]
[1760270788975,10.11975836,3827.0,3826.9,0.00290638]
[1760270791168,50.91975836,3827.0,3826.9,0.00290638]
[1760270792674,50.44955836,3827.0,3826.9,0.47311638]
[1760270792872,47.24175836,3827.0,3826.9,1.02681638]
[1760270793074,47.24175836,3827.0,3826.9,1.26081638]
[1760270793470,3.45983271,3827.0,3826.9,4.46861638]
[1760270793975,3.45983271,3827.0,3826.9,11.80004904]
[1760270794179,3.45983271,3827.0,3826.9,9.46861638]
[1760270795882,3.45983271,3827.0,3826.9,4.46861638]
[1760270798480,2.19517271,3827.0,3826.9,4.46861638]
[1760270798976,0.80831271,3827.0,3826.9,4.46861638]
[1760270799380,2.71e-06,3827.0,3826.9,4.46861638]
[1760270799782,0.20544876,3827.3,3827.2,0.7877]
[1760270800172,0.20544876,3827.3,3827.2,1.25787]
[1760270814789,3.12772929,3827.3,3827.2,1.25787]
[1760270815381,2.92511717,3827.3,3827.2,1.25787]
[1760270815685,1.98303929,3827.3,3827.2,1.25787]
[1760270815894,0.022,3827.8,3827.7,0.92801]
[1760270816091,0.022,3827.8,3827.7,1.26961]
[1760270816293,43.59642911,3827.8,3827.7,1.26961]
[1760270816495,43.59908488,3827.8,3827.7,1.26961]
[1760270816687,43.59908488,3827.8,3827.7,1.04411]
[1760270817798,51.95306238,3827.8,3827.7,0.47011]
[1760270818087,0.47016,3827.4,3827.0,0.1382]
[1760270818287,5.0,3827.3,3827.2,0.47017]
[1760270818495,11.34076627,3827.3,3827.2,0.47017]
[1760270818988,52.14076627,3827.3,3827.2,0.81177]
[1760270819390,52.14076627,3827.3,3827.2,0.47017]
[1760270820090,52.14076627,3827.3,3826.9,0.00290638]
[1760270820290,0.47018,3827.2,3827.0,0.1454]
[1760270820590,2.84203053,3827.1,3827.0,0.95719]
[1760270820785,0.47023,3826.7,3826.0,1.30908]
[1760270821086,3.2078,3826.8,3826.7,0.47023]
[1760270821291,44.0078,3826.8,3826.7,0.47023]
[1760270821492,44.0078,3826.8,3826.5,0.61645]
[1760270821493,6.13460987,3826.6,3826.5,0.61645]
[1760270821883,3.36131228,3826.6,3826.5,0.61977557]
[1760270822193,3.3817499,3826.6,3826.5,0.96137557]
[1760270822693,3.39854501,3826.6,3826.5,1.41927557]
[1760270822989,3.2078,3827.7,3827.6,0.81172]
[1760270823190,3.2078,3827.7,3827.6,0.3416]
[1760270823385,3.45100156,3827.6,3827.5,0.61553]
[1760270823586,3.45100156,3827.6,3827.5,0.95713]
[1760270823788,6.77568009,3827.6,3827.5,0.487]
[1760270824188,6.77568009,3827.6,3827.0,0.1454]
[1760270824189,0.47017,3827.3,3827.0,0.61559]
[1760270824389,3.2078,3827.1,3827.0,0.61559]
[1760270824589,44.0078,3827.1,3827.0,0.61559]
[1760270824794,46.74071484,3827.1,3827.0,0.95719]
[1760270824993,50.17780323,3827.1,3827.0,0.95719]
[1760270826191,50.17780323,3827.1,3827.0,1.18959]
[1760270827998,50.17780323,3827.1,3827.0,0.95719]
[1760270829296,50.64798323,3827.1,3827.0,0.1454]
[1760270829794,0.47021,3826.9,3826.7,0.3416]
[1760270830000,0.47021,3826.9,3826.8,0.81742]
[1760270830302,44.47799,3827.1,3827.0,0.4842]
[1760270830803,50.80770149,3827.1,3827.0,0.4842]
[1760270832102,50.80770149,3827.1,3827.0,0.137]
[1760270832801,50.80770149,3827.1,3826.8,0.3472]
[1760270833097,0.4703,3826.1,3826.0,0.4805]
[1760270833300,0.47037,3825.6,3825.5,0.1454]
[1760270833494,41.27037,3825.6,3825.5,0.1454]
[1760270833697,47.45762131,3825.6,3825.5,0.1454]
[1760270833902,0.47041,3825.3,3825.1,0.3472]
[1760270834204,6.34653767,3825.2,3825.1,0.34989786]
[1760270834600,6.34653767,3825.2,3825.1,0.00269786]
[1760270835201,0.47049,3824.6,3824.4,3.555]
[1760270835398,0.47049,3824.6,3824.5,0.4842]
[1760270835699,3.2078,3825.3,3825.2,0.822]
[1760270836005,3.67815,3825.7,3825.6,0.3472]
[1760270836300,6.63461314,3825.7,3825.6,0.35047401]
[1760270836501,47.06612094,3825.7,3825.6,5.82527401]
[1760270836702,3.4550578,3825.7,3825.6,5.82527401]
[1760270836898,2.9108778,3825.7,3825.6,5.82527401]
[1760270837105,3.2078,3826.8,3826.7,0.3472]
[1760270837304,44.0078,3826.8,3826.7,0.3472]
[1760270837606,46.96313765,3826.8,3826.7,0.3472]
[1760270837904,47.43335765,3826.8,3826.7,0.3472]
[1760270838104,0.47024,3826.6,3826.5,0.4842]
[1760270838501,3.24214847,3826.6,3826.5,0.4842]
[1760270839103,6.6876286,3826.6,3826.5,0.4842]
[1760270839599,6.2173886,3826.6,3826.5,0.4842]
[1760270841907,6.6876286,3826.6,3826.5,1.18856]
[1760270842608,6.6876286,3826.6,3826.5,0.4842]
[1760270843304,6.2173886,3826.6,3826.5,0.4842]
[1760270843513,6.2173886,3826.6,3826.5,1.42926]
[1760270844808,47.0173886,3826.6,3826.5,1.42926]
[1760270845918,47.0173886,3826.6,3826.5,1.18856]
[1760270846122,47.0173886,3826.6,3826.5,0.95446]
[1760270846323,47.4876286,3826.6,3826.5,0.95446]
[1760270846718,47.0173886,3826.6,3826.5,0.95446]
[1760270847316,47.4876286,3826.6,3826.5,0.95446]
[1760270847920,47.0173886,3826.6,3826.5,0.95446]
[1760270848726,47.0173886,3826.6,3826.5,1.42926]
[1760270849625,3.44548013,3826.6,3826.5,6.42926]
[1760270849923,0.00320191,3826.8,3826.7,1.29223]
[1760270850318,3.37068428,3826.8,3826.7,1.29223]
[1760270850919,0.022,3827.8,3827.7,0.47011]
[1760270851226,2.92881093,3827.8,3827.7,1.29211]
[1760270851426,43.72881093,3827.8,3827.7,1.29211]
[1760270851924,43.73123633,3827.8,3827.7,1.29211]
[1760270852823,40.8244254,3827.8,3827.7,1.29211]
[1760270853523,40.8024254,3827.8,3827.7,1.29211]
[1760270853722,40.8024254,3827.8,3827.7,6.29211]
[1760270853723,0.0024254,3827.8,3827.7,6.29211]
[1760270853929,3.2078,3829.2,3829.1,1.05124]
[1760270854426,5.9853386,3829.2,3829.1,1.05124]
[1760270854629,43.5775386,3829.2,3829.1,1.05124]
[1760270854930,43.58001233,3829.2,3829.1,1.29491759]
[1760270856326,47.03528067,3829.2,3829.1,1.29491759]
[1760270856725,47.03528067,3829.2,3829.1,4.50271759]
[1760270857531,44.25774207,3829.2,3829.1,9.50271759]
[1760270858029,0.00247373,3829.2,3829.1,9.50271759]
[1760270858423,3.2078,3830.5,3830.1,0.46981]
[1760270858424,40.8,3830.2,3830.1,0.46981]
[1760270858624,40.8,3830.2,3830.1,1.29181]
[1760270858922,46.93448295,3830.2,3830.1,1.29181]
[1760270859530,46.93750793,3830.2,3830.1,1.29181]
[1760270861727,46.93750793,3830.2,3830.1,1.05111]
[1760270862635,46.93750793,3830.2,3830.1,1.27121]
[1760270864433,46.93750793,3830.2,3830.1,1.05111]
[1760270864827,46.93750793,3830.2,3830.1,0.81701]
[1760270865827,46.93750793,3830.2,3830.1,1.03951]
[1760270866132,46.93750793,3830.2,3830.1,1.26921]
[1760270866833,46.93750793,3830.2,3830.1,0.81701]
[1760270867029,46.93750793,3830.2,3830.1,1.26921]
[1760270868933,46.93750793,3830.2,3830.1,0.3472]
[1760270869331,44.17467354,3830.2,3830.1,1.26921]
[1760270873340,3.37467354,3830.2,3830.1,1.26921]
[1760270874734,6.27595521,3830.2,3830.1,0.81701]
[1760270875126,6.27595521,3830.2,3830.1,1.03951]
[1760270875333,47.07595521,3830.2,3830.1,1.26921]
[1760270875534,44.17467354,3830.2,3830.1,1.26921]
[1760270877041,47.05360224,3830.2,3830.1,1.03951]
[1760270879137,47.52340224,3830.2,3830.1,0.3472]
[1760270879340,47.05360224,3830.2,3830.1,0.81701]
[1760270880345,47.52340224,3830.2,3830.1,0.3472]
[1760270880547,47.52340224,3830.2,3830.1,0.81701]
[1760270881039,47.05360224,3830.2,3830.1,0.81701]
[1760270882144,47.05360224,3830.2,3830.1,1.03951]
[1760270882350,47.52340224,3830.2,3830.0,0.137]
[1760270882848,47.52340224,3830.2,3830.1,0.81871]
[1760270883445,48.20331824,3830.2,3830.1,0.81871]
[1760270883839,47.73351824,3830.2,3830.1,0.81871]
[1760270884245,47.73351824,3830.2,3830.1,1.04121]
[1760270885646,48.20331824,3830.2,3830.1,0.3489]
[1760270885845,0.46981,3830.1,3830.0,0.137]
[1760270886052,0.46985,3829.8,3829.7,0.3489]
[1760270886254,1.149766,3829.8,3829.7,0.3489]
[1760270886446,7.34127101,3829.8,3829.7,0.81876]